Workbook

Sheet Basic
N1: Free download from http://aksharait.com
B2: Let probability of a basketball player making the basket is | K2: p = | L2: 0.7
B4: Let S stands for success i.e. making the basket | I4: Let F stands for missing the basket
B6: Let us consider the event where player throws basket-ball 4 times
B8: Possible outcomes of the event
B9: All Failure | D9: 1 Success | F9: 2 Success | H9: 3 Success | J9: All Success
A10: All Possible combinations by which event can took place | B10: FFFF | D10: SFFF | F10: SSFF | H10: SSSF | J10: SSSS
D12: FSFF | F12: SFSF | H12: SSFS
D14: FFSF | F14: SFFS | H14: SFSS
D16: FFFS | F16: FSSF | H16: FSSS
F18: FSFS
F20: FFSS
B24: Probability calculations for above event
B26: =1*0.3*0.3*0.3*0.3 | D26: =4*0.7*0.3*0.3*0.3 | F26: =6*0.7*0.7*0.3*0.3 | H26: =4*0.7*0.7*0.7*0.3 | J26: =0.7*0.7*0.7*0.7
B28: =0.3*0.3*0.3*0.3 -> 0.0081 | D28: =4*0.7*0.3*0.3*0.3 -> 0.0756 | F28: =6*0.7*0.7*0.3*0.3 -> 0.2646 | H28: =4*0.7*0.7*0.7*0.3 -> 0.4116 | J28: =0.7*0.7*0.7*0.7 -> 0.2401
F31: =B28+D28+F28+H28+J28 -> 1
B35: Obviously whenever we say success probability is 70% means
B36: 3 success out of 4 (75%) is most likely to happen

Sheet Ex
N1: Download from http://aksharait.com
B3: Understanding the meaning of 70% probability of a success
C4: Binomial Distribution | D4: N C X * p N * q X | E4: takes the form of normal distribution for very large values of N
B5: Let an event has the success probability of | F5: 70 | G5: %
B6: If 100 trials taken, each trial that the event will have success will be | H6: 70 | I6: %
B8: Probability of exact 70 success out of 100 is | G8: 100 C 70 * 0.7 70 * 0.3 30 | J8: =COMBIN(100,70)*0.7^70*0.3^30 -> 0.08678386475
B11: Number of total trials | C11: 100
B13: Number of exact successes | C13: Probability
B14: 1 | C14: =COMBIN(100,B14)*0.7^B14*0.3^(100-B14) -> 1.202547548e-50
B15: 2 | C15: 1.388942418e-48
B16: 3 | C16: 1.058682777e-46
B17: 4 | C17: 5.990380045e-45
B18: 5 | C18: 2.68369026e-43
B19: 6 | C19: 9.914744572e-42
B20: 7 | C20: 3.106619966e-40
B21: 8 | C21: 8.426706657e-39
B22: 9 | C22: 2.009925588e-37
B23: 10 | C23: 4.267741998e-36
B24: 11 | C24: 8.147507451e-35
B25: 12 | C25: 1.409971428e-33
B26: 13 | C26: 2.227031795e-32
B27: 14 | C27: 3.229196102e-31
B28: 15 | C28: 4.319946785e-30
B29: 16 | C29: 5.354934036e-29
B30: 17 | C30: 6.173923948e-28
B31: 18 | C31: 6.64268484e-27
B32: 19 | C32: 6.689300172e-26
B33: 20 | C33: 6.321388663e-25
B34: 21 | C34: 5.619012145e-24
B35: 22 | C35: 4.708051085e-23
B36: 23 | C36: 3.725501293e-22
B37: 24 | C37: 2.788951663e-21
B38: 25 | C38: 1.978296379e-20
B39: 26 | C39: 1.33154564e-19
B40: 27 | C40: 8.515316561e-19
B41: 28 | C41: 5.180150908e-18
B42: 29 | C42: 3.000915009e-17
B43: 30 | C43: 1.657171955e-16
B44: 31 | C44: 8.731336106e-16
B45: 32 | C45: 4.392953479e-15
B46: 33 | C46: =COMBIN(100,B46)*0.7^B46*0.3^(100-B46) -> 2.112167531e-14
B47: 34 | C47: 9.711829138e-14
B48: 35 | C48: 4.273204821e-13
B49: 36 | C49: 1.800285364e-12
B50: 37 | C50: 7.266016605e-12
B51: 38 | C51: 2.810801161e-11
B52: 39 | C52: 1.042639063e-10
B53: 40 | C53: 3.710057332e-10
B54: 41 | C54: 1.266848845e-09
B55: 42 | C55: 4.152448993e-09
B56: 43 | C56: 1.306894799e-08
B57: 44 | C57: 3.950386552e-08
B58: 45 | C58: 1.147075206e-07
B59: 46 | C59: 3.200173583e-07
B60: 47 | C60: 8.579188754e-07
B61: 48 | C61: 2.210332658e-06
B62: 49 | C62: 5.473204677e-06
B63: 50 | C63: 1.302622713e-05
B64: 51 | C64: 2.97985588e-05
B65: 52 | C65: 6.551862607e-05
B66: 53 | C66: 0.0001384544551
B67: 54 | C67: 0.0002811821959
B68: 55 | C68: 0.0005487313155
B69: 56 | C69: 0.001028871217
B70: 57 | C70: 0.001853171548
B71: 58 | C71: 0.00320577377
B72: 59 | C72: 0.005324844567
B73: 60 | C73: 0.008490168837
B74: 61 | C74: 0.01299042227
B75: 62 | C75: 0.01906658752
B76: 63 | C76: 0.02683445651
B77: 64 | C77: 0.03619856373
B78: 65 | C78: =COMBIN(100,B78)*0.7^B78*0.3^(100-B78) -> 0.04677968235
B79: 66 | C79: 0.05788395039
B80: 67 | C80: 0.06853920493
B81: 68 | C81: 0.07761057029
B82: 69 | C82: 0.08398438525
B83: 70 | C83: 0.08678386475
B84: 71 | C84: 0.0855615568
B85: 72 | C85: 0.08041201866
B86: 73 | C86: 0.07196692081
B87: 74 | C87: 0.06126913528
B88: 75 | C88: 0.04955992276
B89: 76 | C89: 0.0380394144
B90: 77 | C90: 0.02766502866
B91: 78 | C91: 0.01903448553
B92: 79 | C92: 0.01236839988
B93: 80 | C93: 0.007575644926
B94: 81 | C94: 0.004364569093
B95: 82 | C95: 0.002359706054
B96: 83 | C96: 0.001194068124
B97: 84 | C97: 0.0005638655029
B98: 85 | C98: 0.0002476585738
B99: 86 | C99: 0.0001007912801
B100: 87 | C100: 3.784500171e-05
B101: 88 | C101: 1.304505741e-05
B102: 89 | C102: 4.104063004e-06
B103: 90 | C103: 1.170417968e-06
B104: 91 | C104: 3.001071712e-07
B105: 92 | C105: 6.850272387e-08
B106: 93 | C106: 1.374965067e-08
B107: 94 | C107: 2.389123698e-09
B108: 95 | C108: 3.520813871e-10
B109: 96 | C109: 4.278766857e-11
B110: 97 | C110: =COMBIN(100,B110)*0.7^B110*0.3^(100-B110) -> 4.117026529e-12
B111: 98 | C111: 2.940733235e-13
B112: 99 | C112: 1.386204218e-14
B113: 100 | C113: 3.23447651e-16

Sheet Sheet3
